fUST/lending_fUST_20260410
["ID","MTS","AMOUNT","RATE_DAILY","PERIOD"]
[420192916,1775766672087,-500.0,0.00020821,18]
[420192917,1775766672096,-554.19,0.00020821,18]
[420192918,1775766672109,-500.0,0.00020821,18]
[420192919,1775766672133,-533.08,0.00020821,18]
[420192920,1775766672143,-500.0,0.00020821,18]
[420192921,1775766672152,-500.0,0.00020821,18]
[420192922,1775766672161,-500.0,0.00020821,18]
[420192923,1775766672171,-547.55,0.00020821,18]
[420192924,1775766672181,-889.68,0.00020821,18]
[420192925,1775766672193,-552.09,0.00020821,18]
[420192926,1775766672218,-804.52,0.00020821,18]
[420192927,1775766672227,-500.0,0.00020821,18]
[420192928,1775766672237,-500.0,0.00020821,18]
[420192929,1775766672246,-500.0,0.00020821,18]
[420192930,1775766672256,-500.0,0.00020821,18]
[420192931,1775766672265,-500.0,0.00020821,18]
[420192932,1775766672275,-500.07661307,0.00020821,18]
[420192933,1775766672284,-500.0,0.00020821,18]
[420192934,1775766672294,-500.0,0.00020821,18]
[420192935,1775766672304,-500.0,0.00020821,18]
[420192936,1775766672313,-500.0,0.00020821,18]
[420192937,1775766672323,-412.88985496,0.00020821,18]
[420192938,1775766672335,-500.0,0.00020821,18]
[420192939,1775766672344,-500.0,0.00020821,18]
[420192940,1775766672353,-1468.21,0.00020821,18]
[420192941,1775766672390,-500.0,0.00020821,18]
[420192942,1775766672399,-558.75,0.00020821,18]
[420192943,1775766672408,-648.9,0.00020821,18]
[420192944,1775766672418,-500.0,0.00020821,18]
[420192945,1775766672427,-500.0,0.00020821,18]
[420192946,1775766672435,-500.0,0.00020821,18]
[420192947,1775766672446,-500.0,0.00020821,18]
[420192948,1775766672475,-500.0,0.00020821,18]
[420192949,1775766672484,-2771.98,0.00020821,18]
[420192950,1775766672494,-500.0,0.00020821,18]
[420192951,1775766672503,-999.54,0.00020821,18]
[420192952,1775766672513,-500.0,0.00020821,18]
[420192953,1775766672522,-838.45,0.00020821,18]
[420192954,1775766672531,-500.0,0.00020821,18]
[420192955,1775766672541,-500.0,0.00020821,18]
[420192956,1775766672551,-169.81206036,0.00020821,18]
[420192957,1775766672562,-500.0,0.00020821,18]
[420192958,1775766672587,-1899.82,0.00020821,18]
[420192959,1775766672598,-500.0,0.00020821,18]
[420192960,1775766672607,-2235.08,0.00020821,18]
[420192961,1775766672616,-500.0,0.00020821,7]
[420192962,1775766672625,-500.0,0.00020821,18]
[420192963,1775766672638,-465.37398598,0.00020821,18]
[420192964,1775766672648,-912.12,0.00020821,18]
[420192965,1775766672678,-500.0,0.00020821,18]
[420192966,1775766672688,-2544.6,0.00020821,18]
[420192967,1775766672698,-500.0,0.00020821,18]
[420192968,1775766672707,-806.95,0.00020821,18]
[420192969,1775766672717,-1370.28,0.00020821,18]
[420192970,1775766672726,-1525.55,0.00020821,18]
[420192971,1775766672740,-500.0,0.00020821,18]
[420192972,1775766672770,-824.45,0.00020821,18]
[420192973,1775766672780,-500.0,0.00020821,18]
[420192974,1775766672790,-550.46,0.00020821,18]
[420192975,1775766672799,-500.0,0.00020821,18]
[420192976,1775766672809,-500.0,0.00020821,18]
[420192977,1775766672818,-500.0,0.00020821,18]
[420192978,1775766672828,-500.0,0.00020821,18]
[420192979,1775766672853,-978.3,0.00020821,18]
[420192980,1775766672863,-500.0,0.00020821,18]
[420192981,1775766672873,-1172.16,0.00020821,18]
[420192982,1775766672882,-500.0,0.00020821,18]
[420192983,1775766672892,-1515.63,0.00020821,18]
[420192984,1775766672901,-1317.81,0.00020821,18]
[420192985,1775766672913,-1519.7,0.00020821,18]
[420192986,1775766672953,-500.0,0.00020821,18]
[420192987,1775766672963,-544.06512623,0.00020821,18]
[420192988,1775766672973,-1813.31,0.00020821,18]
[420192989,1775766672988,-500.0,0.00020821,18]
[420192990,1775766672997,-500.0,0.00020821,18]
[420192991,1775766673006,-749.15,0.00020821,18]
[420192992,1775766673044,-549.45,0.00020821,18]
[420192993,1775766673060,-500.0,0.00020821,18]
[420192994,1775766673069,-733.2,0.00020821,18]
[420192995,1775766673083,-854.08,0.00020821,18]
[420192996,1775766673097,-3069.05,0.00020821,18]
[420192997,1775766673118,-500.0,0.00020821,18]
[420192998,1775766673127,-1330.02,0.00020821,18]
[420192999,1775766673136,-904.26,0.00020821,18]
[420193000,1775766673145,-500.0,0.00020821,18]
[420193001,1775766673153,-500.0,0.00020821,18]
[420193002,1775766673163,-500.0,0.00020821,18]
[420193003,1775766673172,-500.0,0.00020821,18]
[420193004,1775766673184,-762.3,0.00020821,18]
[420193005,1775766673193,-955.14,0.00020821,18]
[420193006,1775766673202,-2718.11,0.00020821,18]
[420193007,1775766673216,-500.0,0.00020821,18]
[420193008,1775766673226,-500.0,0.00020821,18]
[420193009,1775766673235,-813.16,0.00020821,18]
[420193010,1775766673270,-1258.82,0.00020821,18]
[420193011,1775766673279,-824.13,0.00020821,18]
[420193012,1775766673288,-500.0,0.00020821,18]
[420193013,1775766673297,-500.0,0.00020821,18]
[420193014,1775766673312,-746.65,0.00020821,18]
[420193015,1775766673321,-1120.76,0.00020821,18]
[420193016,1775766673335,-550.38,0.00020821,18]
[420193017,1775766673345,-1224.73,0.00020821,18]
[420193018,1775766673354,-500.0,0.00020821,18]
[420193019,1775766673363,-1188.58,0.00020821,18]
[420193020,1775766673375,-500.0,0.00020821,18]
[420193021,1775766673384,-1000.0,0.00020821,2]
[420193022,1775766673396,-225.86044333,0.00020821,18]
[420193023,1775766673422,-1267.19,0.00020821,18]
[420193024,1775766673432,-500.0,0.00020821,18]
[420193025,1775766673441,-500.0,0.00020821,18]
[420193026,1775766673451,-500.0,0.00020821,18]
[420193027,1775766673463,-563.99,0.00020821,18]
[420193028,1775766673475,-4209.39,0.00020821,18]
[420193029,1775766673502,-500.0,0.00020821,18]
[420193030,1775766673511,-520.0665592,0.00020821,18]
[420193031,1775766673521,-500.0,0.00020821,10]
[420193032,1775766673530,-500.0,0.00020821,18]
[420193033,1775766673541,-2877.14,0.00020821,18]
[420193034,1775766673550,-500.0,0.00020821,18]
[420193035,1775766673566,-500.0,0.00020821,18]
[420193036,1775766673584,-500.0,0.00020821,18]
[420193037,1775766673593,-500.0,0.00020821,18]
[420193038,1775766673603,-2566.82,0.00020821,18]
[420193039,1775766673612,-681.05,0.00020821,18]
[420193040,1775766673621,-500.0,0.00020821,18]
[420193041,1775766673631,-500.0,0.00020821,18]
[420193042,1775766673640,-500.0,0.00020821,18]
[420193043,1775766673650,-329.71553946,0.00020821,18]
[420193044,1775766673659,-500.0,0.00020821,18]
[420193045,1775766673669,-2272.87,0.00020821,18]
[420193046,1775766673678,-500.0,0.00020821,18]
[420193047,1775766673687,-726.02,0.00020821,18]
[420193048,1775766673697,-500.0,0.00020821,18]
[420193049,1775766673706,-500.0,0.00020821,18]
[420193050,1775766673741,-500.0,0.00020821,18]
[420193051,1775766673750,-500.0,0.00020821,18]
[420193052,1775766673760,-500.0,0.00020821,18]
[420193053,1775766673770,-1369.46,0.00020821,18]
[420193054,1775766673779,-660.23,0.00020821,18]
[420193055,1775766673789,-500.0,0.00020821,18]
[420193056,1775766673798,-1451.36,0.00020821,18]
[420193057,1775766673808,-834.78,0.00020821,18]
[420193058,1775766673826,-500.0,0.00020821,18]
[420193059,1775766673839,-500.0,0.00020821,18]
[420193060,1775766673850,-535.65,0.00020821,18]
[420193061,1775766673859,-6193.33,0.00020821,18]
[420193062,1775766673869,-500.0,0.00020821,18]
[420193063,1775766673879,-535.43,0.00020821,18]
[420193064,1775766673891,-882.45,0.00020821,18]
[420193065,1775766673918,-500.0,0.00020821,18]
[420193066,1775766673927,-4868.55,0.00020821,18]
[420193067,1775766673938,-1814.94,0.00020821,18]
[420193068,1775766673947,-500.0,0.00020821,18]
[420193069,1775766673956,-643.15390933,0.00020821,18]
[420193070,1775766673966,-662.26,0.00020821,18]
[420193071,1775766673975,-946.89,0.00020821,18]
[420193072,1775766674004,-3445.23,0.00020821,18]
[420193073,1775766674037,-500.0,0.00020821,18]
[420193074,1775766674046,-829.97,0.00020821,18]
[420193075,1775766674055,-526.24,0.00020821,18]
[420193076,1775766674065,-3068.48,0.00020821,18]
[420193077,1775766674075,-500.0,0.00020821,18]
[420193078,1775766674084,-936.3,0.00020821,18]
[420193079,1775766674094,-500.0,0.00020821,18]
[420193080,1775766674103,-895.72,0.00020821,18]
[420193081,1775766674112,-500.0,0.00020821,18]
[420193082,1775766674122,-614.65,0.00020821,18]
[420193083,1775766674133,-500.0,0.00020821,18]
[420193084,1775766674142,-500.0,0.00020821,18]
[420193085,1775766674173,-500.0,0.00020821,18]
[420193086,1775766674182,-1146.61,0.00020821,18]
[420193087,1775766674192,-4391.38,0.00020821,18]
[420193088,1775766674201,-500.0,0.00020821,18]
[420193089,1775766674211,-500.0,0.00020821,18]
[420193090,1775766674221,-500.0,0.00020821,10]
[420193091,1775766674230,-562.43,0.00020821,18]
[420193092,1775766674239,-1959.62,0.00020821,18]
[420193093,1775766674250,-672.44,0.00020821,18]
[420193094,1775766674275,-500.0,0.00020821,18]
[420193095,1775766674289,-823.87,0.00020821,18]
[420193096,1775766674298,-500.0,0.00020821,18]
[420193097,1775766674307,-500.0,0.00020821,18]
[420193098,1775766674317,-436.23892397,0.00020821,18]
[420193099,1775766674326,-500.0,0.00020821,18]
[420193100,1775766674336,-567.98,0.00020821,2]
[420193101,1775766674357,-1414.24,0.00020821,18]
[420193102,1775766674385,-2772.16,0.00020821,18]
[420193103,1775766674395,-500.0,0.00020821,18]
[420193104,1775766674405,-3885.4,0.00020821,18]
[420193105,1775766674414,-685.82,0.00020821,18]
[420193106,1775766674427,-3710.64,0.00020821,18]
[420193107,1775766674437,-500.0,0.00020821,18]
[420193108,1775766674480,-500.0,0.00020821,18]
[420193109,1775766674490,-534.61,0.00020821,18]
[420193110,1775766674499,-500.0,0.00020821,18]
[420193111,1775766674511,-1416.98,0.00020821,18]
[420193112,1775766674522,-500.0,0.00020821,18]
[420193113,1775766674531,-1493.89,0.00020821,18]
[420193114,1775766674561,-500.0,0.00020821,18]
[420193115,1775766674570,-500.0,0.00020821,18]
[420193116,1775766674580,-708.81,0.00020821,18]
[420193117,1775766674590,-500.0,0.00020821,18]
[420193118,1775766674607,-500.0,0.00020821,18]
[420193119,1775766674622,-500.0,0.00020821,18]
[420193120,1775766674632,-500.0,0.00020821,18]
[420193121,1775766674642,-1287.09,0.00020821,18]
[420193122,1775766674651,-2674.21,0.00020821,18]
[420193123,1775766674664,-1078.72,0.00020821,18]
[420193124,1775766674673,-754.28,0.00020821,18]
[420193125,1775766674688,-500.0,0.00020821,18]
[420193126,1775766674698,-548.64,0.00020821,18]
[420193127,1775766674707,-351.93499399,0.00020821,18]
[420193128,1775766674717,-1305.51,0.00020821,18]
[420193129,1775766674726,-744.62,0.00020821,18]
[420193130,1775766674736,-637.7,0.00020821,18]
[420193131,1775766674745,-832.3,0.00020821,18]
[420193132,1775766674755,-4558.28,0.00020821,18]
[420193133,1775766674764,-500.0,0.00020821,18]
[420193134,1775766674798,-500.0,0.00020821,18]
[420193135,1775766674808,-500.0,0.00020821,18]
[420193136,1775766674818,-500.0,0.00020821,18]
[420193137,1775766674827,-570.18,0.00020821,18]
[420193138,1775766674836,-500.0,0.00020821,18]
[420193139,1775766674845,-1238.51,0.00020821,18]
[420193140,1775766674855,-500.0,0.00020821,18]
[420193141,1775766674870,-500.0,0.00020821,18]
[420193142,1775766674888,-500.0,0.00020821,18]
[420193143,1775766674898,-4694.49,0.00020821,18]
[420193144,1775766674907,-500.0,0.00020821,18]
[420193145,1775766674916,-500.0,0.00020821,18]
[420193146,1775766674925,-590.05,0.00020821,18]
[420193147,1775766674934,-985.9,0.00020821,18]
[420193148,1775766674944,-977.31,0.00020821,18]
[420193149,1775766674953,-500.0,0.00020821,18]
[420193150,1775766674978,-2267.05,0.00020821,18]
[420193151,1775766674995,-1858.85,0.00020821,18]
[420193152,1775766675004,-1003.71,0.00020821,18]
[420193153,1775766675013,-500.0,0.00020821,11]
[420193154,1775766675022,-500.0,0.00020821,18]
[420193155,1775766675034,-11765.07,0.00020821,18]
[420193156,1775766675046,-4361.65,0.00020821,18]
[420193157,1775766675111,-500.0,0.00020821,18]
[420193158,1775766675121,-1856.84,0.00020821,18]
[420193159,1775766675131,-533.93,0.00020821,18]
[420193160,1775766675141,-500.0,0.00020821,18]
[420193161,1775766675152,-500.0,0.00020821,18]
[420193162,1775766675162,-500.0,0.00020821,18]
[420193163,1775766675171,-500.0,0.00020821,18]
[420193164,1775766675181,-2104.89,0.00020821,18]
[420193165,1775766675191,-585.97,0.00020821,18]
[420193166,1775766675203,-500.0,0.00020821,18]
[420193167,1775766675213,-3395.96,0.00020821,18]
[420193168,1775766675223,-1427.81,0.00020821,18]
[420193169,1775766675240,-10016.59,0.00020821,18]
[420193170,1775766675249,-2929.8,0.00020821,18]
[420193171,1775766675259,-750.56,0.00020821,18]
[420193172,1775766675268,-604.91,0.00020821,18]
[420193173,1775766675278,-524.9,0.00020821,18]
[420193174,1775766675288,-3291.29,0.00020821,18]
[420193175,1775766675298,-1282.71,0.00020821,18]
[420193176,1775766675307,-3430.82,0.00020821,18]
[420193177,1775766675317,-500.0,0.00020821,18]
[420193178,1775766675329,-500.0,0.00020821,18]
[420193179,1775766675361,-631.07,0.00020821,18]
[420193180,1775766675371,-500.0,0.00020821,18]
[420193181,1775766675380,-4330.12,0.00020821,18]
[420193182,1775766675390,-3992.24,0.00020821,18]
[420193183,1775766675400,-1093.98,0.00020821,18]
[420193184,1775766675409,-500.0,0.00020821,18]
[420193185,1775766675419,-502.78,0.00020821,2]
[420193186,1775766675429,-608.9,0.00020821,18]
[420193187,1775766675438,-624.47,0.00020821,18]
[420193188,1775766675448,-3264.76,0.00020821,18]
[420193189,1775766675458,-309.613866,0.000209,2]
[420193190,1775766675468,-755504.53336014,0.000209,2]
[420193191,1775766675493,-1157.05271276,0.000209,2]
[420193192,1775766675549,-21686.4,0.000209,2]
[420193193,1775766675561,-611.42793442,0.000209,2]
[420193194,1775766675893,-330.0,0.00017964,2]
[420193195,1775766675903,-500.0,0.00019178,18]
[420193196,1775766675913,-865.03,0.00019178,18]
[420193197,1775766675927,-54.97,0.00019452,18]
[420193198,1775766676472,-445.03,0.00019452,18]
[420193199,1775766676482,-865.03,0.00019452,18]
[420193200,1775766676492,-363.0,0.00019632,2]
[420193201,1775766676502,-500.0,0.00019726,18]
[420193202,1775766676512,-865.03,0.00019726,18]
[420193203,1775766676521,-159.02154267,0.0002,18]
[420193204,1775766676531,-865.03,0.0002,18]
[420193205,1775766676542,-865.03,0.00020273,18]
[420193206,1775766676552,-865.03,0.00020547,18]
[420193207,1775766676561,-865.03,0.00020821,18]
[420193208,1775766676571,-2211.34792494,0.000209,2]
[420198719,1775767831723,-399.29698368,0.00013699,2]
[420198720,1775767831748,-600.70301632,0.00013699,2]
[420198721,1775767831758,-615.0,0.00013699,2]
[420198723,1775767831767,-300.0,0.00016099,2]
[420198724,1775767831795,-1117.0,0.00016099,2]
[420198726,1775767831805,-1000.0,0.000161,2]
[420198727,1775767831814,-645.81072254,0.000161,2]
[420198756,1775767838714,-354.18927746,0.000161,2]
[420198757,1775767838727,-1000.0,0.000161,2]
[420198758,1775767838736,-1000.0,0.000161,2]
[420198759,1775767838746,-1000.0,0.000161,2]
[420198760,1775767838754,-395.84882207,0.000161,2]
[420198761,1775767838772,-604.15117793,0.000161,2]
[420198762,1775767838782,-1000.0,0.000161,2]
[420198763,1775767838837,-1000.0,0.000161,2]
[420198764,1775767838850,-214.64418384,0.000161,2]
[420198765,1775767838862,-785.35581616,0.000161,2]
[420198766,1775767838875,-1000.0,0.000161,2]
[420198767,1775767838885,-300.0,0.00016438,2]
[420198768,1775767838894,-632.94399361,0.00016452,2]
[420198769,1775767838909,-177.0,0.00016899,2]
[420198770,1775767838919,-2570.7752548,0.00017393,2]
[420198771,1775767838928,-420.0,0.000176,2]
[420198772,1775767838943,-330.0,0.00017964,2]
[420198773,1775767838953,-490.6033098,0.00018542,2]
[420198774,1775767838964,-204.0,0.00018899,2]
[420198775,1775767838991,-188.85046586,0.00018903,2]
[420198776,1775767839003,-163.83909932,0.00018903,2]
[420198777,1775767839012,-247.7795017,0.00018903,2]
[420198778,1775767839023,-229.4768335,0.00018903,2]
[420198779,1775767839037,-4013.85093872,0.00018976,2]
[420198780,1775767839049,-735.54,0.00019,2]
[420198781,1775767839098,-214.7,0.00019,2]
[420198782,1775767839110,-539.1,0.00019067,3]
[420198783,1775767839121,-500.0,0.00019075,2]
[420198784,1775767839136,-500.0,0.00019075,2]
[420198785,1775767839146,-500.0,0.00019075,2]
[420198786,1775767839164,-500.0,0.00019075,2]
[420198787,1775767839174,-500.0,0.00019075,2]
[420198788,1775767839184,-500.0,0.00019075,2]
[420198789,1775767839193,-500.0,0.00019075,2]
[420198790,1775767839206,-496.50604081,0.00019075,2]
[420198791,1775767839423,-500.0,0.00019075,2]
[420198792,1775767839433,-354.48368156,0.00019075,2]
[420198793,1775767839443,-500.0,0.00019075,2]
[420198794,1775767839453,-500.0,0.00019075,2]
[420198795,1775767839462,-201.19506416,0.00019075,2]
[420198799,1775767840668,-529.68392001,0.00018542,2]
[420198800,1775767840678,-298.80493584,0.00019075,2]
[420198801,1775767840688,-296.85703518,0.00019075,2]
[420198802,1775767840700,-203.14296482,0.00019075,2]
[420198803,1775767840710,-500.0,0.00019075,2]
[420198804,1775767840721,-500.0,0.00019075,2]
[420198805,1775767840730,-500.0,0.00019075,2]
[420198806,1775767840739,-500.0,0.00019075,2]
[420198807,1775767840751,-500.0,0.00019075,2]
[420198808,1775767840761,-500.0,0.00019075,2]
[420198809,1775767840770,-500.0,0.00019075,2]
[420198810,1775767840786,-500.0,0.00019075,2]
[420198811,1775767840821,-500.0,0.00019075,2]
[420198812,1775767840832,-500.0,0.00019075,2]
[420198813,1775767840842,-500.0,0.00019075,2]
[420198814,1775767840852,-500.0,0.00019075,2]
[420198815,1775767840862,-505.8182397,0.00019075,2]
[420198816,1775767840871,-500.0,0.00019076,2]
[420198817,1775767840880,-645.01219358,0.00019076,2]
[420198818,1775767840921,-180.08356695,0.00019076,2]
[420198819,1775767840930,-500.0,0.00019076,2]
[420198820,1775767840939,-500.0,0.00019076,2]
[420198821,1775767840949,-500.0,0.00019076,2]
[420198822,1775767840958,-500.0,0.00019076,2]
[420198823,1775767840972,-500.0,0.00019076,2]
[420198824,1775767840992,-500.0,0.00019076,2]
[420198825,1775767841002,-500.0,0.00019076,2]
[420198826,1775767841013,-500.0,0.00019076,2]
[420198827,1775767841022,-500.0,0.00019076,2]
[420198828,1775767841053,-500.0,0.00019076,2]
[420198829,1775767841103,-500.0,0.00019076,2]
[420198830,1775767841112,-500.0,0.00019076,2]
[420198831,1775767841122,-500.0,0.00019076,2]
[420198832,1775767841138,-183.94151864,0.00019076,2]
[420198833,1775767841147,-500.0,0.00019076,2]
[420198834,1775767841171,-500.0,0.00019076,2]
[420198835,1775767841180,-500.0,0.00019076,2]
[420198836,1775767841200,-500.0,0.00019076,2]
[420198837,1775767841209,-550.0,0.00019076,2]
[420198838,1775767841252,-1397.38398692,0.00019076,2]
[420198839,1775767841262,-1397.38398692,0.00019076,2]
[420198840,1775767841273,-1397.38398692,0.00019076,2]
[420198841,1775767841288,-1397.38398692,0.00019076,2]
[420198842,1775767841297,-1397.38398692,0.00019076,2]
[420198843,1775767841311,-1397.38398692,0.00019076,2]
[420198844,1775767841321,-1397.38398692,0.00019076,2]
[420198845,1775767841338,-1397.38398692,0.00019076,2]
[420198846,1775767841347,-1397.38398692,0.00019076,2]
[420198847,1775767841356,-1397.38398692,0.00019076,2]
[420198848,1775767841376,-1397.38398692,0.00019076,2]
[420198849,1775767841385,-1397.38398692,0.00019076,2]
[420198850,1775767841398,-882.00237327,0.00019076,2]
[420198885,1775767843061,-512.515449,0.00019031,2]
[420198886,1775767843073,-500.0,0.00019075,2]
[420198887,1775767843095,-525.36292783,0.00019076,2]
[420198888,1775767843105,-1407.3653011,0.00019076,2]
[420198889,1775767843115,-1407.3653011,0.00019076,2]
[420198890,1775767843127,-1407.3653011,0.00019076,2]
[420198891,1775767843138,-1407.3653011,0.00019076,2]
[420198892,1775767843148,-1407.3653011,0.00019076,2]
[420198893,1775767843198,-1407.3653011,0.00019076,2]
[420198894,1775767843220,-1407.3653011,0.00019076,2]
[420198895,1775767843229,-1467.07170782,0.00019076,2]
[420198896,1775767843238,-1467.07170782,0.00019076,2]
[420198897,1775767843253,-1467.07170782,0.00019076,2]
[420198898,1775767843262,-1467.07170782,0.00019076,2]
[420198899,1775767843280,-1467.07170782,0.00019076,2]
[420198900,1775767843290,-1467.07170782,0.00019076,2]
[420198901,1775767843298,-99.6201886,0.00019077,2]
[420198907,1775767846310,-1042.12160456,0.00019077,2]
[420198908,1775767846328,-4777.37238371,0.00019077,2]
[420198909,1775767846340,-5022.51892044,0.00019077,2]
[420198910,1775767846447,-214394.80098032,0.00019077,2]
[420199058,1775768124040,5081.26,9.001e-05,2]
[420199061,1775768481282,-32.73798582,0.00013699,2]
[420199062,1775768481333,-528.96798811,0.00013699,2]
[420199096,1775769032144,-515.6773213,0.0001,2]
[420199098,1775769032157,-64.40717509,0.0001,2]
[420199100,1775769032166,-560.0,0.0001,2]
[420199102,1775769032177,-300.0,0.00010199,2]
[420199104,1775769032187,-355.71045177,0.000102,5]
[420199106,1775769032199,-4144.49545032,0.000102,5]
[420199108,1775769032216,-334.45923056,0.000102,5]
[420199226,1775769038194,-15404.28636343,0.000102,5]
[420199227,1775769038210,-420.0,0.00011217,2]
[420199228,1775769038220,-177.0,0.000121,2]
[420199229,1775769038231,-180.0,0.00012336,2]
[420199230,1775769038262,-1000.0,0.00013699,2]
[420199231,1775769038272,-204.0,0.000141,2]
[420199232,1775769038283,-1000.0,0.00014913,2]
[420199233,1775769038300,-231.0,0.000161,2]
[420199234,1775769038320,-300.0,0.00016438,2]
[420199235,1775769038343,-321.98191196,0.000169,2]
[420199236,1775769038356,-179.9494408,0.00017135,2]
[420199237,1775769038374,-10000.0,0.00017587,2]
[420199238,1775769038384,-330.0,0.00017964,2]
[420199239,1775769038404,-258.0,0.000181,2]
[420199240,1775769038414,-327.493,0.00018122,2]
[420199241,1775769038428,-244.7897561,0.00018122,2]
[420199243,1775769038442,-206.05374239,0.00018773,2]
[420199244,1775769038465,-500.0,0.00018773,2]
[420199246,1775769038474,-500.0,0.00018773,2]
[420199248,1775769038498,-500.0,0.00018773,2]
[420199249,1775769038513,-550.58182397,0.00018773,2]
[420199251,1775769038533,-451.50853551,0.00018774,2]
[420199253,1775769038544,-500.0,0.00018774,2]
[420199254,1775769038559,-500.0,0.00018774,2]
[420199255,1775769038573,-500.0,0.00018774,2]
[420199256,1775769038584,-500.0,0.00018774,2]
[420199257,1775769038599,-324.12771891,0.00018774,2]
[420199258,1775769038611,-500.0,0.00018774,2]
[420199259,1775769038639,-500.0,0.00018774,2]
[420199260,1775769038649,-500.0,0.00018774,2]
[420199261,1775769038661,-500.0,0.00018774,2]
[420199262,1775769038679,-500.0,0.00018774,2]
[420199263,1775769038689,-500.0,0.00018774,2]
[420199264,1775769038699,-500.0,0.00018774,2]
[420199265,1775769038717,-1239.16329607,0.00018774,2]
[420199266,1775769038730,-1239.16329607,0.00018774,2]
[420199267,1775769038739,-1239.16329607,0.00018774,2]
[420199268,1775769038749,-500.0,0.00018774,2]
[420199269,1775769038760,-500.0,0.00018774,2]
[420199270,1775769038769,-500.0,0.00018774,2]
[420199271,1775769038782,-1239.16329607,0.00018774,2]
[420199272,1775769038802,-589.63134414,0.00018774,2]
[420199273,1775769038812,-1239.16329607,0.00018774,2]
[420199274,1775769038822,-500.0,0.00018774,2]
[420199275,1775769038834,-500.0,0.00018774,2]
[420199276,1775769038852,-1239.16329607,0.00018774,2]
[420199277,1775769038863,-1202.44734656,0.00018774,2]
[420199278,1775769038881,-1202.44734656,0.00018774,2]
[420199279,1775769038901,-1202.44734656,0.00018774,2]
[420199280,1775769038911,-450.0,0.00018774,2]
[420199281,1775769038920,-1202.44734656,0.00018774,2]
[420199282,1775769038942,-1202.44734656,0.00018774,2]
[420199283,1775769038952,-1202.44734656,0.00018774,2]
[420199284,1775769038967,-1202.44734656,0.00018774,2]
[420199285,1775769038979,-936.3817079,0.00018774,2]
[420199286,1775769039001,-266.06563866,0.00018774,2]
[420199287,1775769039010,-1202.44734656,0.00018774,2]
[420199288,1775769039020,-1442.93681587,0.00018774,2]
[420199289,1775769039040,-1442.93681587,0.00018774,2]
[420199290,1775769039050,-1442.93681587,0.00018774,2]
[420199291,1775769039074,-389879.44605123,0.00018775,2]
[420199292,1775769039098,-21202.43506293,0.00018775,2]
[420199293,1775769039128,-4139.67013678,0.00018775,2]
[420199294,1775769039140,-211409.68796414,0.00018775,2]
[420199295,1775769039150,-500.0,0.00018775,2]
[420199296,1775769039160,-1582114.89304286,0.00018775,2]
[420199297,1775769039175,-644.0,0.00018833,2]
[420199298,1775769039189,-2206.0,0.00018833,2]
[420199299,1775769039198,-738.0,0.00018833,2]
[420199300,1775769039208,-184.0,0.00018833,2]
[420199301,1775769039221,-441.0,0.00018833,2]
[420199302,1775769039231,-181.3220541,0.00018863,2]
[420199303,1775769039245,-151.0,0.00018863,2]
[420199304,1775769039265,-151.0,0.00018863,2]
[420199305,1775769039274,-151.0,0.00018863,2]
[420199306,1775769039288,-151.0,0.00018863,2]
[420199307,1775769039297,-151.0,0.00018863,2]